[Event "Mistrovství Čech mládeže 2023 - HD16"]
[Site "Harrachov, Czech Republic"]
[Date "2023.10.23"]
[Round "4.7"]
[White "Veverka, Vladimír"]
[Black "Ocelák, David"]
[Result "1-0"]
[TimeControl "90m + 30s"]
[WhiteElo "1849"]
[BlackElo "1580"]

1. d4 {[%clk 01:30:47]} {[%emt 00:00:12]} Nf6 {[%clk 01:30:33]} {[%emt
00:00:28]} 2. c4 {[%clk 01:31:10]} {[%emt 00:00:07]} e6 {[%clk 01:30:45]}
{[%emt 00:00:18]} 3. Nc3 {[%clk 01:31:02]} {[%emt 00:00:38]} Bb4 {[%clk
01:30:49]} {[%emt 00:00:26]} 4. Qc2 {[%clk 01:31:03]} {[%emt 00:00:28]} b6
{[%clk 01:30:35]} {[%emt 00:00:44]} 5. e4 {[%clk 01:31:10]} {[%emt 00:00:24]}
Bb7 {[%clk 01:29:54]} {[%emt 00:01:11]} 6. Bd3 {[%clk 01:29:44]} {[%emt
00:01:55]} Bxc3+ {[%clk 01:21:24]} {[%emt 00:08:59]} 7. bxc3 {[%clk 01:29:56]}
{[%emt 00:00:19]} d6 {[%clk 01:21:30]} {[%emt 00:00:24]} 8. Nf3 {[%clk
01:28:46]} {[%emt 00:01:40]} Nbd7 {[%clk 01:20:21]} {[%emt 00:01:39]} 9. a4
{[%clk 01:25:50]} {[%emt 00:03:26]} h6 {[%clk 01:18:39]} {[%emt 00:02:11]} 10.
O-O {[%clk 01:25:08]} {[%emt 00:01:13]} O-O {[%clk 01:14:45]} {[%emt 00:04:24]}
11. h3 {[%clk 01:11:15]} {[%emt 00:14:23]} e5 {[%clk 01:07:57]} {[%emt
00:07:18]} 12. Bd2 {[%clk 01:03:42]} {[%emt 00:08:04]} Re8 {[%clk 01:04:57]}
{[%emt 00:03:29]} 13. Rae1 {[%clk 01:02:25]} {[%emt 00:01:47]} Re7 {[%clk
01:02:05]} {[%emt 00:03:23]} 14. d5 {[%clk 01:00:06]} {[%emt 00:02:48]} Nc5
{[%clk 00:58:59]} {[%emt 00:03:36]} 15. Be3 {[%clk 01:00:00]} {[%emt 00:00:36]}
Nfd7 {[%clk 00:58:04]} {[%emt 00:01:24]} 16. Nh4 {[%clk 00:58:54]} {[%emt
00:01:36]} Bc8 {[%clk 00:49:19]} {[%emt 00:09:15]} 17. Nf5 {[%clk 00:57:01]}
{[%emt 00:02:23]} Re8 {[%clk 00:49:09]} {[%emt 00:00:41]} 18. f4 {[%clk
00:54:12]} {[%emt 00:03:19]} exf4 {[%clk 00:30:09]} {[%emt 00:19:30]} 19. Rxf4
{[%clk 00:52:02]} {[%emt 00:02:39]} Ne5 {[%clk 00:29:36]} {[%emt 00:01:02]} 20.
Bxc5 {[%clk 00:50:38]} {[%emt 00:01:55]} bxc5 {[%clk 00:29:16]} {[%emt
00:00:51]} 21. Qe2 {[%clk 00:49:19]} {[%emt 00:01:48]} Qg5 {[%clk 00:25:01]}
{[%emt 00:04:45]} 22. Ref1 {[%clk 00:45:17]} {[%emt 00:04:33]} g6 {[%clk
00:17:28]} {[%emt 00:08:03]} 23. h4 {[%clk 00:43:02]} {[%emt 00:02:45]} Qh5
{[%clk 00:10:06]} {[%emt 00:07:51]} 24. g4 {[%clk 00:42:45]} {[%emt 00:00:48]}
Nxg4 {[%clk 00:08:38]} {[%emt 00:01:58]} 25. Qxg4 {[%clk 00:40:58]} {[%emt
00:02:17]} Qxg4+ {[%clk 00:08:24]} {[%emt 00:00:44]} 26. Rxg4 {[%clk 00:41:21]}
{[%emt 00:00:07]} Kh7 {[%clk 00:08:35]} {[%emt 00:00:19]} 27. Nxh6 {[%clk
00:40:32]} {[%emt 00:01:19]} Kxh6 {[%clk 00:07:13]} {[%emt 00:01:52]} 28. Rgf4
{[%clk 00:40:53]} {[%emt 00:00:09]} f5 {[%clk 00:05:57]} {[%emt 00:01:47]} 29.
exf5 {[%clk 00:41:13]} {[%emt 00:00:10]} Bxf5 {[%clk 00:05:27]} {[%emt
00:01:00]} 30. Bxf5 {[%clk 00:41:36]} {[%emt 00:00:07]} gxf5 {[%clk 00:05:52]}
{[%emt 00:00:05]} 31. Rxf5 {[%clk 00:42:03]} {[%emt 00:00:03]} Re4 {[%clk
00:05:45]} {[%emt 00:00:37]} 32. R1f4 {[%clk 00:41:17]} {[%emt 00:01:15]} Rae8
{[%clk 00:04:36]} {[%emt 00:01:40]} 33. Kg2 {[%clk 00:40:54]} {[%emt 00:00:51]}
Re2+ {[%clk 00:02:40]} {[%emt 00:02:27]} 34. Kg3 {[%clk 00:41:03]} {[%emt
00:00:20]} R8e3+ {[%clk 00:02:09]} {[%emt 00:01:02]} 35. Rf3 {[%clk 00:41:13]}
{[%emt 00:00:20]} Rxf3+ {[%clk 00:02:17]} {[%emt 00:00:22]} 36. Kxf3 {[%clk
00:37:22]} {[%emt 00:04:20]} Rc2 {[%clk 00:02:13]} {[%emt 00:00:33]} 37. Kg4
{[%clk 00:37:42]} {[%emt 00:00:09]} Rxc3 {[%clk 00:01:42]} {[%emt 00:01:02]} 38.
Rf4 {[%clk 00:38:08]} {[%emt 00:00:04]} Ra3 {[%clk 00:01:10]} {[%emt 00:01:02]}
39. Kf5 {[%clk 00:38:31]} {[%emt 00:00:07]} Rxa4 {[%clk 00:00:46]} {[%emt
00:00:55]} 40. Ke6 {[%clk 00:39:00]} {[%emt 00:00:01]} Rb4 {[%clk 00:00:40]}
{[%emt 00:00:36]} 41. Kd7 {[%clk 00:39:03]} {[%emt 00:00:27]} a5 {[%clk
00:00:48]} {[%emt 00:00:22]} 42. Kxc7 {[%clk 00:39:07]} {[%emt 00:00:26]} a4
{[%clk 00:01:00]} {[%emt 00:00:18]} 43. Kxd6 {[%clk 00:38:56]} {[%emt
00:00:41]} a3 {[%clk 00:00:50]} {[%emt 00:00:41]} 44. Kxc5 {[%clk 00:39:08]}
{[%emt 00:00:17]} Ra4 {[%clk 00:00:32]} {[%emt 00:00:48]} 45. Rf1 {[%clk
00:38:57]} {[%emt 00:00:40]} Kh5 {[%clk 00:00:31]} {[%emt 00:00:32]} 46. d6
{[%clk 00:38:59]} {[%emt 00:00:28]} a2 {[%clk 00:00:34]} {[%emt 00:00:27]} 47.
d7 {[%clk 00:38:22]} {[%emt 00:01:07]} 1-0

[Event "Mistrovství Čech mládeže 2023 - HD16"]
[Site "Harrachov, Czech Republic"]
[Date "2023.10.23"]
[Round "4.8"]
[White "Kaplanová, Dominika"]
[Black "Kohm, Patrik"]
[Result "1/2-1/2"]
[TimeControl "90m + 30s"]
[WhiteElo "1782"]
[BlackElo "1475"]

1. d4 {[%clk 01:30:45]} {[%emt 00:00:14]} Nf6 {[%clk 01:30:46]} {[%emt
00:00:15]} 2. c4 {[%clk 01:30:36]} {[%emt 00:00:39]} g6 {[%clk 01:31:08]}
{[%emt 00:00:08]} 3. Nc3 {[%clk 01:30:33]} {[%emt 00:00:32]} Bg7 {[%clk
01:31:22]} {[%emt 00:00:16]} 4. e4 {[%clk 01:30:13]} {[%emt 00:00:51]} d6
{[%clk 01:31:46]} {[%emt 00:00:07]} 5. Bd3 {[%clk 01:29:47]} {[%emt 00:00:56]}
O-O {[%clk 01:31:48]} {[%emt 00:00:27]} 6. Nge2 {[%clk 01:29:31]} {[%emt
00:00:46]} e5 {[%clk 01:32:03]} {[%emt 00:00:15]} 7. d5 {[%clk 01:29:01]}
{[%emt 00:01:00]} a5 {[%clk 01:31:29]} {[%emt 00:01:04]} 8. O-O {[%clk
01:27:23]} {[%emt 00:02:08]} Na6 {[%clk 01:30:58]} {[%emt 00:01:02]} 9. a3
{[%clk 01:26:19]} {[%emt 00:01:34]} Bd7 {[%clk 01:29:47]} {[%emt 00:01:41]} 10.
f3 {[%clk 01:23:32]} {[%emt 00:03:16]} Ne8 {[%clk 01:29:23]} {[%emt 00:00:54]}
11. Be3 {[%clk 01:22:13]} {[%emt 00:01:49]} f5 {[%clk 01:29:15]} {[%emt
00:00:39]} 12. exf5 {[%clk 01:21:46]} {[%emt 00:00:57]} gxf5 {[%clk 01:29:35]}
{[%emt 00:00:09]} 13. f4 {[%clk 01:21:53]} {[%emt 00:00:23]} Kh8 {[%clk
01:28:12]} {[%emt 00:01:53]} 14. Ng3 {[%clk 01:16:37]} {[%emt 00:05:45]} Nf6
{[%clk 01:16:15]} {[%emt 00:12:28]} 15. h3 {[%clk 01:13:03]} {[%emt 00:04:04]}
e4 {[%clk 01:15:47]} {[%emt 00:00:58]} 16. Bc2 {[%clk 01:12:23]} {[%emt
00:01:09]} Rg8 {[%clk 01:09:24]} {[%emt 00:06:54]} 17. Nce2 {[%clk 01:05:42]}
{[%emt 00:07:11]} Qe8 {[%clk 01:07:02]} {[%emt 00:02:52]} 18. Rb1 {[%clk
01:00:30]} {[%emt 00:05:42]} Nh5 {[%clk 01:06:17]} {[%emt 00:01:14]} 19. Kh2
{[%clk 00:45:31]} {[%emt 00:15:29]} h6 {[%clk 01:04:48]} {[%emt 00:02:00]} 20.
Nxh5 {[%clk 00:41:11]} {[%emt 00:04:51]} Qxh5 {[%clk 01:05:05]} {[%emt
00:00:12]} 21. g3 {[%clk 00:40:47]} {[%emt 00:00:53]} b5 {[%clk 01:03:26]}
{[%emt 00:02:09]} 22. cxb5 {[%clk 00:35:41]} {[%emt 00:05:38]} Bxb5 {[%clk
01:03:33]} {[%emt 00:00:22]} 23. Nd4 {[%clk 00:35:38]} {[%emt 00:00:34]} Qe8
{[%clk 00:58:30]} {[%emt 00:05:33]} 24. Rg1 {[%clk 00:31:46]} {[%emt 00:04:21]}
Bd7 {[%clk 00:58:19]} {[%emt 00:00:41]} 25. b4 {[%clk 00:30:11]} {[%emt
00:02:05]} axb4 {[%clk 00:58:24]} {[%emt 00:00:26]} 26. axb4 {[%clk 00:30:34]}
{[%emt 00:00:07]} Kh7 {[%clk 00:57:22]} {[%emt 00:01:31]} 27. Rg2 {[%clk
00:28:57]} {[%emt 00:02:06]} Qf7 {[%clk 00:53:54]} {[%emt 00:03:59]} 28. b5
{[%clk 00:27:01]} {[%emt 00:02:27]} Nc5 {[%clk 00:40:21]} {[%emt 00:14:03]} 29.
Nc6 {[%clk 00:26:21]} {[%emt 00:01:10]} Ra2 {[%clk 00:36:09]} {[%emt 00:04:41]}
30. Bxc5 {[%clk 00:23:42]} {[%emt 00:03:09]} dxc5 {[%clk 00:36:25]} {[%emt
00:00:14]} 31. Bb3 {[%clk 00:23:20]} {[%emt 00:00:52]} Rxg2+ {[%clk 00:36:15]}
{[%emt 00:00:40]} 32. Kxg2 {[%clk 00:23:48]} {[%emt 00:00:02]} Bf6 {[%clk
00:31:47]} {[%emt 00:04:58]} 33. Kh2 {[%clk 00:20:05]} {[%emt 00:04:13]} Qg6
{[%clk 00:31:28]} {[%emt 00:00:50]} 34. Qg1 {[%clk 00:19:25]} {[%emt 00:01:09]}
Bd4 {[%clk 00:29:34]} {[%emt 00:02:25]} 35. Nxd4 {[%clk 00:17:49]} {[%emt
00:02:07]} cxd4 {[%clk 00:29:46]} {[%emt 00:00:17]} 36. d6 {[%clk 00:17:03]}
{[%emt 00:01:15]} Be6 {[%clk 00:19:37]} {[%emt 00:10:39]} 37. dxc7 {[%clk
00:14:18]} {[%emt 00:03:16]} Bxb3 {[%clk 00:18:39]} {[%emt 00:01:28]} 38. Rxb3
{[%clk 00:14:29]} {[%emt 00:00:18]} Qf7 {[%clk 00:18:26]} {[%emt 00:00:42]} 39.
Rb2 {[%clk 00:12:16]} {[%emt 00:02:44]} Qc4 {[%clk 00:12:40]} {[%emt 00:06:16]}
40. b6 {[%clk 00:11:53]} {[%emt 00:00:53]} Qc3 {[%clk 00:12:22]} {[%emt
00:00:47]} 41. Qg2 {[%clk 00:10:12]} {[%emt 00:02:10]} d3 {[%clk 00:12:28]}
{[%emt 00:00:25]} 42. Qd2 {[%clk 00:08:51]} {[%emt 00:01:51]} Qg7 {[%clk
00:12:31]} {[%emt 00:00:28]} 43. Qg2 {[%clk 00:01:37]} {[%emt 00:07:44]} e3
{[%clk 00:11:57]} {[%emt 00:01:04]} 44. Rb3 {[%clk 00:01:19]} {[%emt 00:00:48]}
d2 {[%clk 00:11:57]} {[%emt 00:00:30]} 45. Rd3 {[%clk 00:01:39]} {[%emt
00:00:09]} Qe7 {[%clk 00:04:09]} {[%emt 00:08:18]} 46. Qe2 {[%clk 00:01:04]}
{[%emt 00:01:06]} Qc5 {[%clk 00:04:01]} {[%emt 00:00:38]} 47. b7 {[%clk
00:00:55]} {[%emt 00:00:39]} Qxc7 {[%clk 00:04:05]} {[%emt 00:00:25]} 48. Qxe3
{[%clk 00:00:58]} {[%emt 00:00:27]} Qxb7 {[%clk 00:03:32]} {[%emt 00:01:04]} 49.
Qxd2 {[%clk 00:01:08]} {[%emt 00:00:20]} Rg7 {[%clk 00:03:25]} {[%emt
00:00:36]} 50. Qg2 {[%clk 00:01:09]} {[%emt 00:00:30]} Qf7 {[%clk 00:03:31]}
{[%emt 00:00:24]} 1/2-1/2

[Event "Mistrovství Čech mládeže 2023 - HD16"]
[Site "Harrachov, Czech Republic"]
[Date "2023.10.23"]
[Round "4.9"]
[White "Mikhno, Artem"]
[Black "Krupka, Aleš"]
[Result "0-1"]
[TimeControl "90m + 30s"]
[WhiteElo "1781"]
[BlackElo "1444"]

1. d4 {[%clk 01:30:56]} {[%emt 00:00:03]} d5 {[%clk 01:30:59]} {[%emt
00:00:02]} 2. c4 {[%clk 01:30:34]} e6 {[%clk 01:30:45]} {[%emt 00:01:35]} 3.
Nc3 {[%clk 01:30:13]} {[%emt 00:00:51]} Nf6 {[%clk 01:31:05]} {[%emt 00:00:10]}
4. Bg5 {[%clk 01:28:25]} {[%emt 00:02:18]} Nbd7 {[%clk 01:30:46]} {[%emt
00:00:50]} 5. e3 {[%clk 01:28:26]} {[%emt 00:00:28]} c6 {[%clk 01:29:41]}
{[%emt 00:01:36]} 6. Nf3 {[%clk 01:23:53]} {[%emt 00:05:04]} Qa5 {[%clk
01:29:02]} {[%emt 00:01:09]} 7. cxd5 {[%clk 01:22:16]} {[%emt 00:02:07]} cxd5
{[%clk 01:22:39]} {[%emt 00:06:53]} 8. Bxf6 {[%clk 01:22:13]} {[%emt 00:00:33]}
Nxf6 {[%clk 01:23:05]} {[%emt 00:00:04]} 9. Ne5 {[%clk 01:22:19]} {[%emt
00:00:24]} Bb4 {[%clk 01:19:38]} {[%emt 00:03:57]} 10. Qb3 {[%clk 01:22:27]}
{[%emt 00:00:22]} O-O {[%clk 01:11:20]} {[%emt 00:08:49]} 11. Bd3 {[%clk
01:22:32]} {[%emt 00:00:25]} a6 {[%clk 00:49:29]} {[%emt 00:22:21]} 12. O-O
{[%clk 01:22:34]} {[%emt 00:00:28]} Bd6 {[%clk 00:48:13]} {[%emt 00:01:47]} 13.
Nf3 {[%clk 01:19:44]} {[%emt 00:03:20]} b5 {[%clk 00:42:25]} {[%emt 00:06:19]}
14. e4 {[%emt 00:07:58]} dxe4 {[%clk 00:39:44]} {[%emt 00:00:24]} 15. Nxe4
{[%clk 01:14:22]} {[%emt 00:01:12]} Nxe4 {[%clk 00:39:51]} {[%emt 00:00:23]} 16.
Bxe4 {[%clk 01:14:45]} {[%emt 00:00:07]} Ra7 {[%clk 00:40:07]} {[%emt
00:00:14]} 17. Ne5 {[%clk 01:13:22]} {[%emt 00:01:53]} Bb7 {[%clk 00:33:27]}
{[%emt 00:07:11]} 18. Qf3 {[%clk 01:11:18]} {[%emt 00:02:34]} Bxe4 {[%clk
00:27:15]} {[%emt 00:06:42]} 19. Qxe4 {[%clk 01:11:37]} {[%emt 00:00:10]} Rc7
{[%clk 00:24:37]} {[%emt 00:03:08]} 20. f4 {[%clk 01:09:21]} {[%emt 00:02:45]}
Bxe5 {[%clk 00:15:10]} {[%emt 00:09:58]} 21. dxe5 {[%clk 01:05:13]} {[%emt
00:04:38]} Qd2 {[%clk 00:10:00]} {[%emt 00:05:40]} 22. b3 {[%clk 01:03:37]}
{[%emt 00:02:06]} Rc2 {[%clk 00:07:54]} {[%emt 00:02:35]} 23. Rfd1 {[%clk
01:02:36]} {[%emt 00:01:31]} Qf2+ {[%clk 00:02:17]} {[%emt 00:06:07]} 24. Kh1
{[%clk 01:02:46]} {[%emt 00:00:20]} Rxa2 {[%clk 00:02:38]} {[%emt 00:00:09]} 25.
h3 {[%clk 00:59:02]} {[%emt 00:04:14]} Qb2 {[%clk 00:01:40]} {[%emt 00:01:29]}
26. Rab1 {[%clk 00:57:13]} {[%emt 00:02:19]} Qf2 {[%clk 00:01:03]} {[%emt
00:01:02]} 27. Rbc1 {[%clk 00:50:08]} {[%emt 00:07:39]} Re2 {[%clk 00:00:47]}
{[%emt 00:00:45]} 28. Qb7 {[%clk 00:43:21]} {[%emt 00:07:17]} Qxf4 {[%clk
00:00:53]} {[%emt 00:00:24]} 29. Qe7 {[%clk 00:37:23]} {[%emt 00:06:29]} g6
{[%clk 00:01:02]} {[%emt 00:00:21]} 30. Rc6 {[%clk 00:30:12]} {[%emt 00:07:41]}
Qe4 {[%clk 00:00:55]} {[%emt 00:00:37]} 31. Qg5 {[%clk 00:29:12]} {[%emt
00:01:30]} Qxc6 {[%clk 00:01:05]} {[%emt 00:00:20]} 32. Rd8 {[%clk 00:29:34]}
{[%emt 00:00:08]} Qc5 {[%clk 00:00:54]} {[%emt 00:00:39]} 33. h4 {[%clk
00:28:32]} {[%emt 00:01:34]} Re1+ {[%clk 00:00:58]} {[%emt 00:00:26]} 34. Kh2
{[%clk 00:28:54]} {[%emt 00:00:08]} Qxe5+ {[%clk 00:01:18]} {[%emt 00:00:10]}
0-1

[Event "Mistrovství Čech mládeže 2023 - HD16"]
[Site "Harrachov, Czech Republic"]
[Date "2023.10.23"]
[Round "4.10"]
[White "Tegda, Vojtěch"]
[Black "Hrubý, Filip"]
[Result "1-0"]
[TimeControl "90m + 30s"]
[WhiteElo "1731"]
[BlackElo "1386"]

1. e4 {[%clk 01:30:57]} {[%emt 00:00:02]} c6 {[%clk 01:30:57]} {[%emt
00:00:04]} 2. d4 {[%clk 01:31:21]} {[%emt 00:00:05]} d5 {[%clk 01:31:19]}
{[%emt 00:00:08]} 3. f3 {[%clk 01:31:46]} {[%emt 00:00:05]} Nf6 {[%clk
01:29:17]} {[%emt 00:02:32]} 4. Nc3 {[%clk 01:27:58]} {[%emt 00:04:17]} dxe4
{[%clk 01:27:45]} {[%emt 00:02:02]} 5. fxe4 {[%clk 01:28:21]} {[%emt 00:00:08]}
Bg4 {[%clk 01:28:03]} {[%emt 00:00:12]} 6. Nf3 {[%clk 01:25:28]} {[%emt
00:03:23]} e6 {[%clk 01:27:53]} {[%emt 00:00:41]} 7. Be3 {[%clk 01:25:30]}
{[%emt 00:00:26]} Bb4 {[%clk 01:27:42]} {[%emt 00:00:41]} 8. Bd3 {[%clk
01:25:22]} {[%emt 00:00:39]} Nbd7 {[%clk 01:26:19]} {[%emt 00:01:53]} 9. O-O
{[%clk 01:19:02]} {[%emt 00:06:50]} O-O {[%clk 01:26:37]} {[%emt 00:00:11]} 10.
e5 {[%clk 01:14:58]} {[%emt 00:04:33]} Nd5 {[%clk 01:26:04]} {[%emt 00:01:03]}
11. Nxd5 {[%clk 01:15:20]} {[%emt 00:00:08]} cxd5 {[%clk 01:26:29]} {[%emt
00:00:05]} 12. c3 {[%clk 01:15:41]} {[%emt 00:00:09]} Be7 {[%clk 01:26:32]}
{[%emt 00:00:26]} 13. Qc2 {[%clk 01:15:45]} {[%emt 00:00:26]} f5 {[%clk
01:18:34]} {[%emt 00:08:29]} 14. Qd2 {[%clk 01:11:47]} {[%emt 00:04:28]} Bxf3
{[%clk 01:08:10]} {[%emt 00:10:55]} 15. gxf3 {[%clk 01:08:42]} {[%emt
00:03:35]} Bh4 {[%clk 01:05:21]} {[%emt 00:03:18]} 16. Kh1 {[%clk 01:06:04]}
{[%emt 00:03:08]} a6 {[%clk 01:04:08]} {[%emt 00:01:44]} 17. Rg1 {[%clk
01:04:41]} {[%emt 00:01:52]} g6 {[%clk 01:04:21]} {[%emt 00:00:17]} 18. Rg2
{[%clk 01:02:21]} {[%emt 00:02:50]} b5 {[%clk 01:02:15]} {[%emt 00:02:36]} 19.
Rag1 {[%clk 00:58:26]} {[%emt 00:04:25]} Rf7 {[%clk 00:59:06]} {[%emt
00:03:39]} 20. Bh6 {[%clk 00:55:08]} {[%emt 00:03:47]} Nf8 {[%clk 00:58:06]}
{[%emt 00:01:29]} 21. Qf4 {[%clk 00:54:07]} {[%emt 00:01:29]} Raa7 {[%clk
00:56:02]} {[%emt 00:02:37]} 22. Bc2 {[%clk 00:38:40]} {[%emt 00:15:57]} Rab7
{[%clk 00:54:39]} {[%emt 00:01:53]} 23. a4 {[%clk 00:36:43]} {[%emt 00:02:28]}
Be7 {[%clk 00:53:00]} {[%emt 00:02:08]} 24. axb5 {[%clk 00:27:00]} {[%emt
00:10:13]} axb5 {[%clk 00:52:40]} {[%emt 00:00:51]} 25. Bd3 {[%clk 00:27:20]}
{[%emt 00:00:10]} Qd7 {[%clk 00:43:54]} {[%emt 00:09:15]} 26. h4 {[%clk
00:26:59]} {[%emt 00:00:51]} Qd8 {[%clk 00:39:07]} {[%emt 00:05:18]} 27. h5
{[%clk 00:19:05]} {[%emt 00:08:24]} Kh8 {[%clk 00:37:23]} {[%emt 00:02:13]} 28.
Bxf8 {[%clk 00:10:00]} {[%emt 00:09:36]} Bxf8 {[%clk 00:36:27]} {[%emt
00:01:26]} 29. hxg6 {[%clk 00:10:21]} {[%emt 00:00:08]} hxg6 {[%clk 00:32:19]}
{[%emt 00:04:38]} 30. Rxg6 {[%clk 00:10:41]} {[%emt 00:00:10]} Rh7+ {[%clk
00:31:48]} {[%emt 00:01:01]} 31. Kg2 {[%clk 00:10:59]} {[%emt 00:00:13]} Rbg7
{[%clk 00:28:12]} {[%emt 00:04:06]} 32. Kf2 {[%clk 00:10:58]} {[%emt 00:00:30]}
Rxg6 {[%clk 00:27:45]} {[%emt 00:00:58]} 33. Rxg6 {[%clk 00:11:24]} {[%emt
00:00:04]} Qd7 {[%clk 00:28:05]} {[%emt 00:00:09]} 34. Qg5 {[%clk 00:08:37]}
{[%emt 00:03:18]} Bg7 {[%clk 00:26:23]} {[%emt 00:02:12]} 35. Bxb5 {[%clk
00:08:53]} {[%emt 00:00:14]} Qc8 {[%clk 00:24:36]} {[%emt 00:02:16]} 36. Qe7
{[%clk 00:07:58]} {[%emt 00:01:25]} Bxe5 {[%clk 00:23:05]} {[%emt 00:02:01]} 37.
Qxe6 {[%clk 00:07:45]} {[%emt 00:00:43]} Qxe6 {[%clk 00:16:59]} {[%emt
00:06:36]} 38. Rxe6 {[%clk 00:08:12]} {[%emt 00:00:02]} Rh2+ {[%clk 00:17:20]}
{[%emt 00:00:08]} 39. Ke3 {[%clk 00:08:26]} {[%emt 00:00:17]} Rxb2 {[%clk
00:14:57]} {[%emt 00:02:52]} 40. Rxe5 {[%clk 00:06:02]} {[%emt 00:02:55]} Rxb5
{[%clk 00:15:18]} {[%emt 00:00:09]} 41. Rxf5 {[%clk 00:06:29]} {[%emt
00:00:03]} Kg7 {[%clk 00:15:29]} {[%emt 00:00:18]} 42. Kf4 {[%clk 00:06:18]}
{[%emt 00:00:42]} Rb3 {[%clk 00:15:19]} {[%emt 00:00:40]} 43. Rxd5 {[%clk
00:06:28]} {[%emt 00:00:20]} Rxc3 {[%emt 00:00:09]} 44. Rf5 {[%emt 00:00:34]}
Rb3 {[%clk 00:13:51]} {[%emt 00:01:14]} 45. d5 {[%clk 00:05:39]} {[%emt
00:01:20]} Kg6 {[%clk 00:14:00]} {[%emt 00:00:20]} 46. Ke4 {[%clk 00:05:10]}
{[%emt 00:00:59]} Rb4+ {[%clk 00:14:08]} {[%emt 00:00:22]} 47. Ke5 {[%clk
00:05:25]} {[%emt 00:00:15]} Rb5 {[%clk 00:14:02]} {[%emt 00:00:36]} 48. Rf4
{[%clk 00:05:47]} {[%emt 00:00:08]} Rb1 {[%clk 00:11:03]} {[%emt 00:03:29]} 49.
d6 {[%clk 00:05:26]} {[%emt 00:00:51]} Re1+ {[%clk 00:10:12]} {[%emt 00:01:21]}
50. Re4 {[%clk 00:05:47]} {[%emt 00:00:08]} Rd1 {[%clk 00:10:34]} {[%emt
00:00:08]} 51. Ke6 {[%clk 00:06:12]} {[%emt 00:00:05]} Ra1 {[%clk 00:10:11]}
{[%emt 00:00:53]} 52. Rg4 {[%clk 00:06:28]} {[%emt 00:00:14]} Kh7 {[%clk
00:10:12]} {[%emt 00:00:27]} 53. d7 {[%clk 00:06:56]} {[%emt 00:00:05]} Ra6+
{[%clk 00:10:19]} {[%emt 00:00:23]} 54. Ke7 {[%clk 00:07:17]} {[%emt 00:00:08]}
Ra7 {[%clk 00:09:59]} {[%emt 00:00:51]} 55. Ke8 {[%clk 00:07:40]} {[%emt
00:00:07]} 1-0

[Event "Mistrovství Čech mládeže 2023 - HD16"]
[Site "Harrachov, Czech Republic"]
[Date "2023.10.23"]
[Round "4.11"]
[White "Stein, Michael"]
[Black "Bohatyrov, Mykola"]
[Result "1-0"]
[TimeControl "90m + 30s"]
[WhiteElo "1717"]
[BlackElo "1725"]

1. e4 {[%clk 01:30:58]} {[%emt 00:00:02]} d6 {[%clk 01:30:57]} {[%emt
00:00:03]} 2. d4 {[%clk 01:31:22]} {[%emt 00:00:05]} Nf6 {[%clk 01:31:23]}
{[%emt 00:00:04]} 3. Nc3 {[%clk 01:31:47]} {[%emt 00:00:06]} g6 {[%clk
01:31:50]} {[%emt 00:00:03]} 4. f4 {[%clk 01:32:02]} {[%emt 00:00:14]} Bg7
{[%clk 01:32:01]} {[%emt 00:00:19]} 5. Nf3 {[%clk 01:31:44]} {[%emt 00:00:48]}
O-O {[%clk 01:32:26]} {[%emt 00:00:05]} 6. h3 {[%clk 01:31:26]} {[%emt
00:00:47]} c5 {[%clk 01:32:13]} {[%emt 00:00:44]} 7. d5 {[%clk 01:29:46]}
{[%emt 00:02:09]} e6 {[%clk 01:29:25]} {[%emt 00:03:18]} 8. dxe6 {[%clk
01:23:47]} {[%emt 00:06:30]} Bxe6 {[%clk 01:29:33]} {[%emt 00:00:21]} 9. Be3
{[%clk 01:22:51]} {[%emt 00:01:26]} Qe7 {[%clk 01:25:16]} {[%emt 00:04:49]} 10.
Qd2 {[%clk 01:17:26]} {[%emt 00:05:54]} Nc6 {[%clk 01:19:31]} {[%emt 00:06:14]}
11. O-O-O {[%clk 01:13:57]} {[%emt 00:03:59]} Rfd8 {[%clk 01:19:17]} {[%emt
00:00:44]} 12. Qf2 {[%clk 01:11:41]} {[%emt 00:02:46]} b6 {[%clk 01:18:17]}
{[%emt 00:01:31]} 13. Bb5 {[%clk 01:08:14]} {[%emt 00:03:57]} Qc7 {[%clk
01:12:41]} {[%emt 00:06:06]} 14. g4 {[%clk 01:02:32]} {[%emt 00:06:11]} a6
{[%clk 01:12:23]} {[%emt 00:00:49]} 15. Be2 {[%clk 00:58:42]} {[%emt 00:04:20]}
b5 {[%clk 01:06:42]} {[%emt 00:06:11]} 16. f5 {[%clk 00:55:47]} {[%emt
00:03:25]} Bc8 {[%clk 01:04:20]} {[%emt 00:02:52]} 17. g5 {[%clk 00:53:52]}
{[%emt 00:02:24]} Nd7 {[%clk 01:04:13]} {[%emt 00:00:38]} 18. f6 {[%clk
00:50:41]} {[%emt 00:03:40]} Bf8 {[%clk 01:04:40]} {[%emt 00:00:04]} 19. Nd5
{[%clk 00:50:39]} {[%emt 00:00:32]} Qb7 {[%clk 01:05:00]} {[%emt 00:00:10]} 20.
h4 {[%clk 00:50:16]} {[%emt 00:00:53]} Nde5 {[%clk 01:05:04]} {[%emt 00:00:26]}
21. Nxe5 {[%clk 00:49:29]} {[%emt 00:01:18]} Nxe5 {[%clk 01:05:28]} {[%emt
00:00:07]} 22. h5 {[%clk 00:45:46]} {[%emt 00:04:13]} b4 {[%clk 01:01:39]}
{[%emt 00:04:19]} 23. Qh4 {[%clk 00:44:55]} {[%emt 00:01:20]} Be6 {[%clk
00:59:05]} {[%emt 00:03:04]} 24. hxg6 {[%clk 00:41:09]} {[%emt 00:04:16]} fxg6
{[%clk 00:59:27]} {[%emt 00:00:09]} 25. f7+ {[%clk 00:33:05]} {[%emt 00:08:33]}
Kxf7 {[%clk 00:58:45]} {[%emt 00:01:12]} 26. Qxh7+ {[%clk 00:30:05]} {[%emt
00:03:30]} Bg7 {[%clk 00:59:10]} {[%emt 00:00:06]} 27. Rdf1+ {[%clk 00:29:21]}
{[%emt 00:01:14]} Ke8 {[%clk 00:59:19]} {[%emt 00:00:22]} 28. Nf6+ {[%clk
00:29:19]} {[%emt 00:00:31]} 1-0